Workbook

Sheet Лист1
A1: Школа | C1: МБОУ "Школа № 127" Приволжского района г.Казани | F1: Согласовал: | G1: должность | H1: Директор
A2: Типовое примерное меню приготавливаемых блюд | G2: фамилия | H2: Ф.А.Ферафонтова
A3: Возрастная категория | E3: 7-11 лет | G3: дата | H3: 1 | I3: 9 | J3: 2025
H4: день | I4: месяц | J4: год
A5: Неделя | B5: День недели | C5: Прием пищи | D5: Раздел меню | E5: Блюда | F5: Вес блюда, г | G5: Белки | H5: Жиры | I5: Углеводы | J5: Калорийность | K5: № рецептуры | L5: Цена
A6: 1 | B6: 1 | C6: Завтрак | D6: гор.блюдо | E6: Тефтели куриные "Лакомка" в соусе для запекания | F6: 90 | G6: 9.768 | H6: 12.911 | I6: 5.217 | J6: 174 | K6: ТТК №3092 от 04.02.2025г
D7: гор.блюдо | E7: Каша гречневая рассыпчатая | F7: 150 | G7: 6.622 | H7: 5.399 | I7: 41.875 | J7: 242 | K7: № 302/2015г
D8: гор.напиток | E8: Чай с сахаром | F8: 208 | G8: 0.021 | H8: 0.005 | I8: 7.989 | J8: 32 | K8: ТТК от 2021г
D9: хлеб черн. | E9: Хлеб ржано-пшеничный/ Хлеб пшеничный | F9: 40 | G9: 2.52 | H9: 0.36 | I9: 18.84 | J9: 91
D10: фрукты | E10: Плоды и ягоды свежие (яблоки) | F10: 100 | G10: 0.4 | H10: 0.4 | I10: 9.8 | J10: 47 | K10: №338 Дели 2015г
D11: закуска | E11: Овощи натуральные свежие (помидоры) | F11: 60 | G11: 0.66 | H11: 0.12 | I11: 2.28 | J11: 14 | K11: №71/2015г Дели
E12: Оладьи 1 шт | F12: 30 | G12: 0.18 | H12: 1.119 | I12: 1.2 | J12: 16 | K12: ТТК от 2025г
D13: итого | F13: =SUM(F6:F12) -> 678 | G13: 20.171 | H13: 20.314 | I13: 87.201 | J13: 616 | L13: 89.77
A14: =A6 -> 1 | B14: 1 | C14: Обед | D14: закуска
D15: 1 блюдо
D16: 2 блюдо
D17: гарнир
D18: напиток
D19: хлеб бел.
D20: хлеб черн.
D23: итого | F23: =SUM(F14:F22) -> 0 | G23: 0 | H23: 0 | I23: 0 | J23: 0 | L23: =SUM(L14:L22) -> 0
A24: =A6 -> 1 | B24: 1 | C24: Итого за день: | F24: =F13+F23 -> 678 | G24: 20.171 | H24: 20.314 | I24: 87.201 | J24: 616 | L24: =L13+L23 -> 89.77
A25: 1 | B25: 2 | C25: Завтрак | D25: гор.блюдо | E25: Запеканка картофельная с куриными грудками | F25: 180 | G25: 14.474 | H25: 11.326 | I25: 27.253 | J25: 269 | K25: ТТК Декабрь 2022г
D27: гор.напиток | E27: Чай без сахара | F27: 200 | G27: 0.021 | H27: 0.005 | I27: 0.005 | J27: 0 | K27: ТТК от 2021г
D28: хлеб черн. | E28: Хлеб ржано-пшеничный/ Хлеб пшеничный | F28: 40 | G28: 2.52 | H28: 0.36 | I28: 18.84 | J28: 91
D30: закуска | E30: Овощи натуральные свежие (огурцы) | F30: 60 | G30: 0.42 | H30: 0.06 | I30: 1.14 | J30: 7 | K30: №71/2015г Дели
E31: Печенье сдобное Американер с кунжутом | F31: 30 | G31: 2.493 | H31: 8.628 | I31: 18.541 | J31: 162 | K31: ТТК 2018
D32: итого | F32: =SUM(F25:F31) -> 510 | G32: 19.928 | H32: 20.379 | I32: 65.779 | J32: 529 | L32: 89.77
A33: =A25 -> 1 | B33: 2 | C33: Обед | D33: закуска
D34: 1 блюдо
D35: 2 блюдо
D36: гарнир
D37: напиток
D38: хлеб бел.
D39: хлеб черн.
D42: итого | F42: =SUM(F33:F41) -> 0 | G42: 0 | H42: 0 | I42: 0 | J42: 0 | L42: =SUM(L33:L41) -> 0
A43: =A25 -> 1 | B43: 2 | C43: Итого за день: | F43: =F32+F42 -> 510 | G43: 19.928 | H43: 20.379 | I43: 65.779 | J43: 529 | L43: =L32+L42 -> 89.77
A44: 1 | B44: 3 | C44: Завтрак | D44: гор.блюдо | E44: Сосиски отварные с соусом для запекания | F44: 90 | G44: 6.916 | H44: 7.543 | I44: 1.758 | J44: 103 | K44: №243/2015г. Дели
D45: гор.блюдо | E45: Макаронные изделия отварные | F45: 150 | G45: 5.602 | H45: 3.868 | I45: 29.306 | J45: 174 | K45: №309/2015г. Дели
D46: гор.напиток | E46: Напиток из урюка | F46: 200 | G46: 0.8 | H46: 0.064 | I46: 9.46 | J46: 42 | K46: ТТК №2693 от 14.09.2023г
D47: хлеб черн. | E47: Хлеб ржано-пшеничный/ Хлеб пшеничный | F47: 40 | G47: 2.52 | H47: 0.36 | I47: 18.84 | J47: 91
D48: фрукты | E48: Плоды и ягоды свежие (яблоки) | F48: 100 | G48: 0.4 | H48: 0.4 | I48: 9.8 | J48: 47 | K48: №338 Дели 2015г
D49: закуска | E49: Салат из моркови | F49: 60 | G49: 0.709 | H49: 3.052 | I49: 6.759 | J49: 58 | K49: №49 Сбор. 2004г./ТТК
E50: Маффин класический | F50: 30 | G50: 2.168 | H50: 4.341 | I50: 11.864 | J50: 101 | K50: ТТК от 19.06.2025г
D51: итого | F51: =SUM(F44:F50) -> 670 | G51: 18.406 | H51: 19.628 | I51: 87.787 | J51: 616 | L51: 89.77
A52: =A44 -> 1 | B52: 3 | C52: Обед | D52: закуска
D53: 1 блюдо
D54: 2 блюдо
D55: гарнир
D56: напиток
D57: хлеб бел.
D58: хлеб черн.
D61: итого | F61: =SUM(F52:F60) -> 0 | G61: 0 | H61: 0 | I61: 0 | J61: 0 | L61: =SUM(L52:L60) -> 0
A62: =A44 -> 1 | B62: 3 | C62: Итого за день: | F62: =F51+F61 -> 670 | G62: 18.406 | H62: 19.628 | I62: 87.787 | J62: 616 | L62: =L51+L61 -> 89.77
A63: 1 | B63: 4 | C63: Завтрак | D63: гор.блюдо | E63: Плов с говядиной | F63: 190 | G63: 13.404 | H63: 14.443 | I63: 35.065 | J63: 324 | K63: ТТК Сентябрь 2023г
D65: гор.напиток | E65: Чай с сахаром | F65: 208 | G65: 0.021 | H65: 0.005 | I65: 7.989 | J65: 32 | K65: ТТК от 2021г
D66: хлеб черн. | E66: Хлеб ржано-пшеничный/ Хлеб пшеничный | F66: 40 | G66: 2.52 | H66: 0.36 | I66: 18.84 | J66: 91
D68: закуска | E68: Салат из белокочанной капусты | F68: 60 | G68: 0.931 | H68: 3.051 | I68: 5.645 | J68: 54 | K68: №45 Сбор. 2015г Дели
E69: Блинчики со сгущенным молоком | F69: 55 | G69: 3.195 | H69: 2.524 | I69: 19.5 | J69: 114 | K69: ТТК (Акт 19.09.2018г)
D70: итого | F70: =SUM(F63:F69) -> 553 | G70: 20.071 | H70: 20.383 | I70: 87.039 | J70: 615 | L70: 89.77
A71: =A63 -> 1 | B71: 4 | C71: Обед | D71: закуска
D72: 1 блюдо
D73: 2 блюдо
D74: гарнир
D75: напиток
D76: хлеб бел.
D77: хлеб черн.
D80: итого | F80: =SUM(F71:F79) -> 0 | G80: 0 | H80: 0 | I80: 0 | J80: 0 | L80: =SUM(L71:L79) -> 0
A81: =A63 -> 1 | B81: 4 | C81: Итого за день: | F81: =F70+F80 -> 553 | G81: 20.071 | H81: 20.383 | I81: 87.039 | J81: 615 | L81: =L70+L80 -> 89.77
A82: 1 | B82: 5 | C82: Завтрак | D82: гор.блюдо | E82: Фрикассе из куриных грудок | F82: 90 | G82: 8.026 | H82: 8.476 | I82: 1.236 | J82: 113 | K82: ТТК 2021г
D83: гор.блюдо | E83: Макаронные изделия отварные | F83: 150 | G83: 5.602 | H83: 3.868 | I83: 29.306 | J83: 174 | K83: №309/2015г. Дели
D84: гор.напиток | E84: Напиток из вишни | F84: 200 | G84: 0.12 | H84: 0.03 | I84: 11.57 | J84: 48 | K84: ТТК №2694 от 14.09.2023г
D85: хлеб черн. | E85: Хлеб ржано-пшеничный/ Хлеб пшеничный | F85: 40 | G85: 2.52 | H85: 0.36 | I85: 18.84 | J85: 91
D87: закуска | E87: Салат из свеклы отварной ( с маслом) | F87: 60 | G87: 0.855 | H87: 3.653 | I87: 5.016 | J87: 56 | K87: Сб., М:ДеЛи плюс, 2015, рец.№52
E88: Фруктовое пюре | F88: 125 | I88: 15 | J88: 60
D89: итого | F89: =SUM(F82:F88) -> 665 | G89: 17.123 | H89: 16.387 | I89: 80.968 | J89: 542 | L89: 89.77
A90: =A82 -> 1 | B90: 5 | C90: Обед | D90: закуска
D91: 1 блюдо
D92: 2 блюдо
D93: гарнир
D94: напиток
D95: хлеб бел.
D96: хлеб черн.
D99: итого | F99: =SUM(F90:F98) -> 0 | G99: 0 | H99: 0 | I99: 0 | J99: 0 | L99: =SUM(L90:L98) -> 0
A100: =A82 -> 1 | B100: 5 | C100: Итого за день: | F100: =F89+F99 -> 665 | G100: 17.123 | H100: 16.387 | I100: 80.968 | J100: 542 | L100: =L89+L99 -> 89.77
A101: 2 | B101: 1 | C101: Завтрак | D101: гор.блюдо | E101: Бифштекс рубленный по-домашнему с соусом для запекания и с овощными палочками из огурцов | F101: 120 | G101: 11.745 | H101: 14.882 | I101: 10.596 | J101: 223 | K101: ТТК Декабрь 2022г/ ТТК №1444 от 28.05.2021г
D102: гор.блюдо | E102: Каша гречневая вязкая | F102: 150 | G102: 3.462 | H102: 4.634 | I102: 21.786 | J102: 143 | K102: ТТК 2014г
D103: гор.напиток | E103: Компот из замороженной компотной смеси | F103: 200 | G103: 0.135 | H103: 0.023 | I103: 11.15 | J103: 46 | K103: ТТК 2021г
D104: хлеб черн. | E104: Хлеб ржано-пшеничный/ Хлеб пшеничный | F104: 40 | G104: 2.52 | H104: 0.36 | I104: 18.84 | J104: 91
D105: фрукты | E105: Плоды и ягоды свежие (яблоки) | F105: 100 | G105: 0.4 | H105: 0.4 | I105: 9.8 | J105: 47 | K105: №338 Дели 2015г
D108: итого | F108: =SUM(F101:F107) -> 610 | G108: 18.262 | H108: 20.299 | I108: 72.172 | J108: 550 | L108: 89.77
A109: =A101 -> 2 | B109: 1 | C109: Обед | D109: закуска
D110: 1 блюдо
D111: 2 блюдо
D112: гарнир
D113: напиток
D114: хлеб бел.
D115: хлеб черн.
D118: итого | F118: =SUM(F109:F117) -> 0 | G118: 0 | H118: 0 | I118: 0 | J118: 0 | L118: =SUM(L109:L117) -> 0
A119: =A101 -> 2 | B119: 1 | C119: Итого за день: | F119: =F108+F118 -> 610 | G119: 18.262 | H119: 20.299 | I119: 72.172 | J119: 550 | L119: =L108+L118 -> 89.77
A120: 2 | B120: 2 | C120: Завтрак | D120: гор.блюдо | E120: Жаркое из филе куриных грудок | F120: 190 | G120: 14.363 | H120: 15.717 | I120: 29.286 | J120: 316 | K120: ТТК 2021г
D122: гор.напиток | E122: Чай с сахаром | F122: 208 | G122: 0.021 | H122: 0.005 | I122: 7.989 | J122: 32 | K122: ТТК 2021г
D123: хлеб черн. | E123: Хлеб ржано-пшеничный/ Хлеб пшеничный | F123: 40 | G123: 2.52 | H123: 0.36 | I123: 18.84 | J123: 91
D124: фрукты | E124: Плоды и ягоды свежие (яблоки) | F124: 100 | G124: 0.4 | H124: 0.4 | I124: 9.8 | J124: 47 | K124: №338 Дели 2015г
D125: закуска | E125: Овощи натуральные свежие (помидоры) | F125: 60 | G125: 0.66 | H125: 0.12 | I125: 2.28 | J125: 14 | K125: №71/2015г Дели
D127: итого | F127: =SUM(F120:F126) -> 598 | G127: 17.964 | H127: 16.602 | I127: 68.195 | J127: 500 | L127: 89.77
A128: =A120 -> 2 | B128: 2 | C128: Обед | D128: закуска
D129: 1 блюдо
D130: 2 блюдо
D131: гарнир
D132: напиток
D133: хлеб бел.
D134: хлеб черн.
D137: итого | F137: =SUM(F128:F136) -> 0 | G137: 0 | H137: 0 | I137: 0 | J137: 0 | L137: =SUM(L128:L136) -> 0
A138: =A120 -> 2 | B138: 2 | C138: Итого за день: | F138: =F127+F137 -> 598 | G138: 17.964 | H138: 16.602 | I138: 68.195 | J138: 500 | L138: =L127+L137 -> 89.77
A139: 2 | B139: 3 | C139: Завтрак | D139: гор.блюдо | E139: Пельмени для умников и умниц отварные с маслом | F139: 185 | G139: 15.935 | H139: 13.359 | I139: 38.197 | J139: 337 | K139: ТТК 2015г
D141: гор.напиток | E141: Напиток из шиповника | F141: 200 | G141: 0.012 | H141: 0.001 | I141: 10.178 | J141: 41 | K141: ТТК от 2021г
D142: хлеб черн. | E142: Хлеб ржано-пшеничный/ Хлеб пшеничный | F142: 40 | G142: 2.52 | H142: 0.36 | I142: 18.84 | J142: 91
D144: закуска | E144: Салат из моркови | F144: 60 | G144: 0.709 | H144: 3.052 | I144: 6.759 | J144: 58 | K144: №49 Сбор. 2004г./ТТК
E145: Батончик "ФИНИКИ-КОКОС-КУНЖУТ" | F145: 16.5 | G145: 1 | H145: 3.4 | I145: 8.5 | J145: 70
D146: итого | F146: =SUM(F139:F145) -> 501.5 | G146: =SUM(G139:G145) -> 20.176 | H146: 20.172 | I146: 82.474 | J146: 597 | L146: 89.77
A147: =A139 -> 2 | B147: 3 | C147: Обед | D147: закуска
D148: 1 блюдо
D149: 2 блюдо
D150: гарнир
D151: напиток
D152: хлеб бел.
D153: хлеб черн.
D156: итого | F156: =SUM(F147:F155) -> 0 | G156: 0 | H156: 0 | I156: 0 | J156: 0 | L156: =SUM(L147:L155) -> 0
A157: =A139 -> 2 | B157: 3 | C157: Итого за день: | F157: =F146+F156 -> 501.5 | G157: 20.176 | H157: 20.172 | I157: 82.474 | J157: 597 | L157: =L146+L156 -> 89.77
A158: 2 | B158: 4 | C158: Завтрак | D158: гор.блюдо | E158: Фрикассе из куриных грудок | F158: 90 | G158: 8.026 | H158: 8.476 | I158: 1.236 | J158: 113 | K158: ТТК 2021г
D159: гор.блюдо | E159: Макаронные изделия отварные | F159: 150 | G159: 5.602 | H159: 3.868 | I159: 29.306 | J159: 174 | K159: №309/2015г. Дели
D160: гор.напиток | E160: Компот из замороженной компотной смеси | F160: 200 | G160: 0.135 | H160: 0.023 | I160: 11.15 | J160: 46 | K160: ТТК 2021г
D161: хлеб черн. | E161: Хлеб ржано-пшеничный/ Хлеб пшеничный | F161: 40 | G161: 2.52 | H161: 0.36 | I161: 18.84 | J161: 91
D163: закуска | E163: Салат из свеклы отварной ( с маслом) | F163: 60 | G163: 0.855 | H163: 3.653 | I163: 5.016 | J163: 56 | K163: Сб., М:ДеЛи плюс, 2015, рец.№52
E164: Маффин класический | F164: 30 | G164: 2.168 | H164: 4.341 | I164: 11.864 | J164: 101 | K164: ТТК от 19.06.2025г
D165: итого | F165: =SUM(F158:F164) -> 570 | G165: 19.306 | H165: 20.721 | I165: 77.412 | J165: 581 | L165: 89.77
A166: =A158 -> 2 | B166: 4 | C166: Обед | D166: закуска
D167: 1 блюдо
D168: 2 блюдо
D169: гарнир
D170: напиток
D171: хлеб бел.
D172: хлеб черн.
D175: итого | F175: =SUM(F166:F174) -> 0 | G175: 0 | H175: 0 | I175: 0 | J175: 0 | L175: =SUM(L166:L174) -> 0
A176: =A158 -> 2 | B176: 4 | C176: Итого за день: | F176: =F165+F175 -> 570 | G176: 19.306 | H176: 20.721 | I176: 77.412 | J176: 581 | L176: =L165+L175 -> 89.77
A177: 2 | B177: 5 | C177: Завтрак | D177: гор.блюдо | E177: Ёжики мясные с рисом в соусе для запекания с овощами натуральными свежими ( огурцы) | F177: 120 | G177: 9.893 | H177: 3.868 | I177: 9.655 | J177: 113 | K177: ТТК от 2024г/ №71/2015г Дели
D178: гор.блюдо | E178: Картофель запеченный | F178: 150 | G178: 3.507 | H178: 8.224 | I178: 28.402 | J178: 202 | K178: Акт от 31.10.2016
D179: гор.напиток | E179: Чай без сахара | F179: 200 | G179: 0.021 | H179: 0.005 | I179: 0.005 | J179: 0 | K179: ТТК от 2021г
D180: хлеб черн. | E180: Хлеб ржано-пшеничный/ Хлеб пшеничный | F180: 40 | G180: 2.52 | H180: 0.36 | I180: 18.84 | J180: 91
E182: Печенье сдобное вкусное | F182: 30 | G182: 2.216 | H182: 8.233 | I182: 18.848 | J182: 158 | K182: Акт от 2019г
D184: итого | F184: =SUM(F177:F183) -> 540 | G184: 18.157 | H184: 20.69 | I184: 75.75 | J184: 564 | L184: 89.77
A185: =A177 -> 2 | B185: 5 | C185: Обед | D185: закуска
D186: 1 блюдо
D187: 2 блюдо
D188: гарнир
D189: напиток
D190: хлеб бел.
D191: хлеб черн.
D194: итого | F194: =SUM(F185:F193) -> 0 | G194: 0 | H194: 0 | I194: 0 | J194: 0 | L194: =SUM(L185:L193) -> 0
A195: =A177 -> 2 | B195: 5 | C195: Итого за день: | F195: =F184+F194 -> 540 | G195: 18.157 | H195: 20.69 | I195: 75.75 | J195: 564 | L195: =L184+L194 -> 89.77
C196: Среднее значение за период: | F196: =(F24+F43+F62+F81+F100+F119+F138+F157+F176+F195)/(IF(F24=0,0,1)+IF(F43=0,0,1)+IF(F62=0,0,1)+IF(F81=0,0,1)+IF(F100=0,0,1)+IF(F119=0,0,1)+IF(F138=0,0,1)+IF(F157=0,0,1)+IF(F176=0,0,1)+IF(F195=0,0,1)) -> 589.55 | G196: 18.9564 | H196: 19.5575 | I196: 78.4777 | J196: 571 | L196: =(L24+L43+L62+L81+L100+L119+L138+L157+L176+L195)/(IF(L24=0,0,1)+IF(L43=0,0,1)+IF(L62=0,0,1)+IF(L81=0,0,1)+IF(L100=0,0,1)+IF(L119=0,0,1)+IF(L138=0,0,1)+IF(L157=0,0,1)+IF(L176=0,0,1)+IF(L195=0,0,1)) -> 89.77
